fUST/lending_fUST_20240817
["ID","MTS","AMOUNT","RATE_DAILY","PERIOD"]
[335146598,1723890708605,-500.0,0.00026999,2]
[335146599,1723890708615,-500.0,0.00026999,2]
[335146600,1723890708627,-500.0,0.00026999,2]
[335146601,1723890708637,-500.0,0.00026999,2]
[335146602,1723890708647,-500.0,0.00026999,2]
[335146603,1723890708657,-500.0,0.00026999,2]
[335146604,1723890708667,-500.0,0.00026999,2]
[335146605,1723890708676,-266000.0,0.00027,2]
[335146606,1723890708687,-2797.18432129,0.00027,2]
[335146607,1723890708697,-501.433027,0.00027,2]
[335146608,1723890708708,-501.433027,0.00027,2]
[335146609,1723890708717,-310.0,0.00027,30]
[335146610,1723890708727,-310.0,0.00027,30]
[335146611,1723890708738,-310.0,0.00027,30]
[335146612,1723890708748,-310.0,0.00027,30]
[335146613,1723890708758,-310.0,0.00027,30]
[335146614,1723890708770,-310.0,0.00027,30]
[335146615,1723890708782,-261.777685,0.00027,30]
[335146616,1723890708792,-1406.266005,0.00027,7]
[335146617,1723890708802,-1406.266005,0.00027,7]
[335146618,1723890708812,-1215.121657,0.00027,7]
[335146619,1723890708823,-1215.121657,0.00027,7]
[335146620,1723890708833,-500.0,0.00027116,2]
[335146621,1723890708844,-500.0,0.00027116,2]
[335146622,1723890708853,-500.0,0.00027116,2]
[335146623,1723890708863,-500.0,0.00027116,2]
[335146624,1723890708874,-500.0,0.00027116,2]
[335146625,1723890708884,-500.0,0.00027116,2]
[335146626,1723890708894,-500.0,0.00027116,2]
[335146627,1723890708904,-500.0,0.00027116,2]
[335146628,1723890708914,-500.0,0.00027116,2]
[335146629,1723890708925,-500.0,0.00027116,2]
[335146630,1723890708935,-500.0,0.00027116,2]
[335146631,1723890708946,-500.0,0.00027116,2]
[335146632,1723890708957,-500.0,0.00027116,2]
[335146633,1723890708967,-500.0,0.00027116,2]
[335146634,1723890708976,-500.0,0.00027116,2]
[335146635,1723890708987,-500.0,0.00027116,2]
[335146636,1723890708997,-508.54145432,0.00027116,2]
[335146637,1723890709007,-160.06363669,0.00027116,2]
[335146638,1723890709016,-500.0,0.00027116,2]
[335146639,1723890709028,-500.0,0.00027116,2]
[335146640,1723890709038,-500.0,0.00027116,2]
[335146641,1723890709049,-500.0,0.00027116,2]
[335146642,1723890709062,-500.0,0.00027116,2]
[335146643,1723890709072,-500.0,0.00027116,2]
[335146644,1723890709081,-500.0,0.00027116,2]
[335146645,1723890709093,-500.0,0.00027116,2]
[335146646,1723890709103,-500.0,0.00027116,2]
[335146647,1723890709112,-500.0,0.00027116,2]
[335146648,1723890709122,-500.0,0.00027116,2]
[335146649,1723890709132,-500.0,0.00027116,2]
[335146650,1723890709143,-500.0,0.00027116,2]
[335146651,1723890709153,-500.0,0.00027116,2]
[335146652,1723890709163,-500.0,0.00027116,2]
[335146653,1723890709174,-501.54,0.00027116,2]
[335146654,1723890709184,-500.0,0.00027116,2]
[335146655,1723890709330,-500.0,0.00027116,2]
[335146656,1723890709348,-500.0,0.00027116,2]
[335146657,1723890709358,-500.0,0.00027116,2]
[335146658,1723890709369,-500.0,0.00027116,2]
[335146659,1723890709379,-500.0,0.00027116,2]
[335146660,1723890709390,-500.0,0.00027116,2]
[335146661,1723890709401,-500.0,0.00027116,2]
[335146662,1723890709411,-1683.39,0.00027116,2]
[335146663,1723890709422,-500.0,0.00027116,2]
[335146664,1723890709432,-500.0,0.00027116,2]
[335146665,1723890709442,-500.0,0.00027116,2]
[335146666,1723890709454,-458.52393766,0.00027116,2]
[335146667,1723890709466,-500.0,0.00027116,2]
[335146668,1723890709477,-500.0,0.00027116,2]
[335146669,1723890709487,-500.0,0.00027116,2]
[335146670,1723890709497,-500.0,0.00027116,2]
[335146671,1723890709508,-500.0,0.00027116,2]
[335146672,1723890709519,-500.0,0.00027116,2]
[335146673,1723890709530,-500.0,0.00027116,2]
[335146674,1723890709540,-500.0,0.00027116,2]
[335146675,1723890709551,-500.0,0.00027116,2]
[335146676,1723890709561,-500.0,0.00027116,2]
[335146677,1723890709572,-500.0,0.00027116,2]
[335146678,1723890709583,-500.0,0.00027116,2]
[335146679,1723890709593,-500.0,0.00027116,2]
[335146680,1723890709604,-500.0,0.00027116,2]
[335146681,1723890709615,-500.0,0.00027116,2]
[335146682,1723890709626,-500.0,0.00027116,2]
[335146683,1723890709637,-500.0,0.00027116,2]
[335146684,1723890709648,-500.0,0.00027116,2]
[335146685,1723890709660,-500.0,0.00027116,2]
[335146686,1723890709671,-500.0,0.00027116,2]
[335146687,1723890709683,-500.0,0.00027116,2]
[335146688,1723890709694,-500.0,0.00027116,2]
[335146689,1723890709705,-500.0,0.00027116,2]
[335146690,1723890709716,-500.0,0.00027116,2]
[335146691,1723890709729,-170.51772365,0.00027116,2]
[335146692,1723890709740,-500.0,0.00027116,2]
[335146693,1723890709751,-500.0,0.00027116,2]
[335146694,1723890709762,-500.0,0.00027116,2]
[335146695,1723890709773,-500.0,0.00027116,2]
[335146696,1723890709784,-500.0,0.00027116,2]
[335146697,1723890709794,-500.0,0.00027116,2]
[335146698,1723890709805,-500.0,0.00027116,2]
[335146699,1723890709816,-500.0,0.00027116,2]
[335146700,1723890709826,-500.0,0.00027116,2]
[335146701,1723890709837,-500.0,0.00027116,2]
[335146702,1723890709846,-500.0,0.00027116,2]
[335146703,1723890709856,-500.0,0.00027116,2]
[335146704,1723890709867,-245.04403995,0.00027116,2]
[335146705,1723890709877,-500.0,0.00027116,2]
[335146706,1723890709887,-500.0,0.00027116,2]
[335146707,1723890709899,-500.0,0.00027116,2]
[335146708,1723890709909,-500.0,0.00027116,2]
[335146709,1723890709918,-500.0,0.00027116,2]
[335146710,1723890709930,-500.0,0.00027116,2]
[335146711,1723890709941,-500.0,0.00027116,2]
[335146712,1723890709952,-500.0,0.00027116,2]
[335146713,1723890709963,-500.0,0.00027116,2]
[335146714,1723890709974,-500.0,0.00027116,2]
[335146715,1723890709987,-547.89,0.00027116,2]
[335146716,1723890709999,-500.0,0.00027116,2]
[335146717,1723890710009,-500.0,0.00027116,2]
[335146718,1723890710020,-500.0,0.00027116,2]
[335146719,1723890710030,-500.0,0.00027116,2]
[335146720,1723890710041,-267.96376777,0.00027116,2]
[335146721,1723890710055,-500.0,0.00027116,2]
[335146722,1723890710066,-500.0,0.00027116,2]
[335146723,1723890710076,-500.0,0.00027116,2]
[335146724,1723890710086,-500.0,0.00027116,2]
[335146725,1723890710097,-515.36279423,0.00027116,2]
[335146726,1723890710108,-500.0,0.00027116,2]
[335146727,1723890710118,-500.0,0.00027116,2]
[335146728,1723890710130,-500.0,0.00027116,2]
[335146729,1723890710140,-500.0,0.00027116,2]
[335146730,1723890710150,-500.0,0.00027116,2]
[335146731,1723890710160,-500.0,0.00027116,2]
[335146732,1723890710170,-500.0,0.00027116,2]
[335146733,1723890710180,-765.7,0.00027116,2]
[335146734,1723890710190,-500.0,0.00027116,2]
[335146735,1723890710201,-500.0,0.00027116,2]
[335146736,1723890710211,-500.0,0.00027116,2]
[335146737,1723890710221,-500.0,0.00027116,2]
[335146738,1723890710231,-500.0,0.00027116,2]
[335146739,1723890710240,-500.0,0.00027116,2]
[335146740,1723890710249,-500.0,0.00027116,2]
[335146741,1723890710259,-500.0,0.00027116,2]
[335146742,1723890710269,-500.0,0.00027116,2]
[335146743,1723890710278,-500.0,0.00027116,2]
[335146744,1723890710288,-633.9,0.00027116,2]
[335146745,1723890710299,-500.0,0.00027116,2]
[335146746,1723890710309,-500.0,0.00027116,2]
[335146747,1723890710319,-500.0,0.00027116,2]
[335146748,1723890710328,-500.0,0.00027116,2]
[335146749,1723890710339,-500.0,0.00027116,2]
[335146750,1723890710349,-500.0,0.00027116,2]
[335146751,1723890710359,-500.0,0.00027116,2]
[335146752,1723890710370,-500.0,0.00027116,2]
[335146753,1723890710380,-500.0,0.00027116,2]
[335146754,1723890710391,-521.11,0.00027116,2]
[335146755,1723890710401,-500.0,0.00027116,2]
[335146756,1723890710411,-500.0,0.00027116,2]
[335146757,1723890710420,-500.0,0.00027116,2]
[335146758,1723890710430,-500.0,0.00027116,2]
[335146759,1723890710439,-500.0,0.00027116,2]
[335146760,1723890710450,-500.0,0.00027116,2]
[335146761,1723890710460,-500.0,0.00027116,2]
[335146762,1723890710469,-775.16,0.00027116,2]
[335146763,1723890710482,-500.0,0.00027116,2]
[335146764,1723890710494,-571.1,0.00027116,2]
[335146765,1723890710507,-500.0,0.00027116,2]
[335146766,1723890710517,-500.0,0.00027116,2]
[335146767,1723890710528,-500.0,0.00027116,2]
[335146768,1723890710538,-514.17184094,0.00027116,2]
[335146769,1723890710549,-500.0,0.00027116,2]
[335146770,1723890710559,-668.62,0.00027116,2]
[335146771,1723890710570,-500.0,0.00027116,2]
[335146772,1723890710580,-500.0,0.00027116,2]
[335146773,1723890710590,-500.0,0.00027116,2]
[335146774,1723890710601,-517.84041194,0.00027116,2]
[335146775,1723890710612,-500.0,0.00027116,2]
[335146776,1723890710624,-731.12,0.00027116,2]
[335146777,1723890710634,-500.0,0.00027116,2]
[335146778,1723890710643,-632.17,0.00027116,2]
[335146779,1723890710656,-500.0,0.00027116,2]
[335146780,1723890710668,-500.0,0.00027116,2]
[335146781,1723890710679,-593.02,0.00027116,2]
[335146782,1723890710690,-500.0,0.00027116,2]
[335146783,1723890710701,-500.0,0.00027116,2]
[335146784,1723890710711,-656.84,0.00027116,2]
[335146785,1723890710722,-500.0,0.00027116,2]
[335146786,1723890710732,-633.28,0.00027116,2]
[335146787,1723890710743,-500.0,0.00027116,2]
[335146788,1723890710753,-500.0,0.00027116,2]
[335146789,1723890710763,-500.0,0.00027116,2]
[335146790,1723890710774,-500.0,0.00027116,2]
[335146791,1723890710784,-521.1,0.00027116,2]
[335146792,1723890710794,-500.0,0.00027116,2]
[335146793,1723890710805,-500.0,0.00027116,2]
[335146794,1723890710817,-500.0,0.00027116,2]
[335146795,1723890710828,-500.0,0.00027116,2]
[335146796,1723890710838,-500.0,0.00027116,2]
[335146797,1723890710848,-500.0,0.00027116,2]
[335146798,1723890710860,-502.7247698,0.00027116,2]
[335146799,1723890710871,-500.0,0.00027116,2]
[335146800,1723890710882,-500.0,0.00027116,2]
[335146801,1723890710893,-500.0,0.00027116,2]
[335146802,1723890710903,-500.0,0.00027116,2]
[335146803,1723890710913,-500.0,0.00027116,2]
[335146804,1723890710923,-764.51,0.00027116,2]
[335146805,1723890710934,-500.0,0.00027116,2]
[335146806,1723890710945,-500.0,0.00027116,2]
[335146807,1723890710955,-500.0,0.00027116,2]
[335146808,1723890710965,-500.0,0.00027116,2]
[335146809,1723890710976,-500.0,0.00027116,2]
[335146810,1723890710986,-625.26,0.00027116,2]
[335146811,1723890710996,-500.0,0.00027116,2]
[335146812,1723890711006,-625.29,0.00027116,2]
[335146813,1723890711017,-500.0,0.00027116,2]
[335146814,1723890711027,-264.73364959,0.00027116,2]
[335146815,1723890711042,-500.0,0.00027116,2]
[335146816,1723890711054,-500.0,0.00027116,2]
[335146817,1723890711066,-500.0,0.00027116,2]
[335146818,1723890711078,-500.0,0.00027116,2]
[335146819,1723890711090,-500.0,0.00027116,2]
[335146820,1723890711101,-500.0,0.00027116,2]
[335146821,1723890711113,-500.0,0.00027122,2]
[335146822,1723890711123,-500.0,0.00027122,2]
[335146823,1723890711134,-1302.46,0.00027122,2]
[335146824,1723890711145,-3815.52,0.00027122,2]
[335146825,1723890711157,-1463.19,0.00027122,2]
[335146826,1723890711168,-1313.81,0.00027122,2]
[335146827,1723890711178,-557.32,0.00027122,2]
[335146828,1723890711187,-4587.93,0.00027122,2]
[335146829,1723890711197,-1281.48,0.00027122,2]
[335146830,1723890711207,-1296.99,0.00027122,2]
[335146831,1723890711216,-1380.37,0.00027122,2]
[335146832,1723890711226,-500.0,0.00027122,2]
[335146833,1723890711235,-3297.99,0.00027122,2]
[335146834,1723890711246,-2369.1,0.00027122,2]
[335146835,1723890711256,-3259.07,0.00027122,2]
[335146836,1723890711265,-2059.73,0.00027122,2]
[335146837,1723890711275,-558.53,0.00027122,2]
[335146838,1723890711285,-1089.27,0.00027122,2]
[335146839,1723890711294,-500.0,0.00027122,2]
[335146840,1723890711303,-4118.73,0.00027122,2]
[335146841,1723890711313,-537.86,0.00027122,2]
[335146842,1723890711322,-500.0,0.00027122,2]
[335146843,1723890711332,-500.0,0.00027123,2]
[335146844,1723890711341,-500.0,0.00027123,2]
[335146845,1723890711350,-221.77199903,0.00027123,2]
[335146846,1723890711360,-505.1679779,0.00027123,2]
[335146847,1723890711369,-575.75,0.00027123,2]
[335146848,1723890711379,-528.48,0.00027123,2]
[335146849,1723890711388,-500.0,0.00027123,2]
[335146850,1723890711398,-500.0,0.00027123,2]
[335146851,1723890711407,-885.91,0.00027123,2]
[335146852,1723890711417,-500.0,0.00027123,2]
[335146853,1723890711427,-642.6,0.00027123,2]
[335146854,1723890711436,-529.2,0.00027123,2]
[335146855,1723890711446,-420.12596198,0.00027123,2]
[335146856,1723890711456,-3128.21,0.00027123,2]
[335146857,1723890711465,-500.0,0.00027123,2]
[335146858,1723890711474,-500.55,0.00027123,2]
[335146859,1723890711484,-1197.09,0.00027123,2]
[335146860,1723890711493,-663.25,0.00027123,2]
[335146861,1723890711503,-553.57,0.00027123,2]
[335146862,1723890711513,-500.0,0.00027123,2]
[335146863,1723890711522,-833.32,0.00027123,2]
[335146864,1723890711533,-593.58,0.00027123,2]
[335146865,1723890711543,-635.22,0.00027123,2]
[335146866,1723890711552,-575.77500427,0.00027123,2]
[335146867,1723890711562,-1678.22,0.00027123,2]
[335146868,1723890711572,-506.81429521,0.00027123,2]
[335146869,1723890711581,-523.73,0.00027123,2]
[335146870,1723890711591,-500.0,0.00027123,2]
[335146871,1723890711600,-929.06,0.00027123,2]
[335146872,1723890711609,-500.0,0.00027123,2]
[335146873,1723890711619,-500.0,0.00027123,2]
[335146874,1723890711629,-500.0,0.00027123,2]
[335146875,1723890711638,-5055.53,0.00027123,2]
[335146876,1723890711648,-726.16,0.00027123,2]
[335146877,1723890711657,-651.69,0.00027123,2]
[335146878,1723890711666,-1917.36,0.00027123,2]
[335146879,1723890711676,-500.0,0.00027123,2]
[335146880,1723890711685,-500.0,0.00027123,2]
[335146881,1723890711695,-785.84,0.00027123,2]
[335146882,1723890711705,-542.57,0.00027123,2]
[335146883,1723890711723,-501.64,0.00027123,2]
[335146884,1723890711779,-1010.89,0.00027123,2]
[335146885,1723890711788,-530.09,0.00027123,2]
[335146886,1723890711798,-605.21,0.00027123,2]
[335146887,1723890711807,-751.83,0.00027123,2]
[335146888,1723890711816,-500.0,0.00027123,2]
[335146889,1723890711825,-1556.4,0.00027123,2]
[335146890,1723890711834,-500.23,0.00027123,2]
[335146891,1723890711844,-752.59,0.00027123,2]
[335146892,1723890711854,-611.43,0.00027123,2]
[335146893,1723890711863,-500.0,0.00027123,2]
[335146894,1723890711872,-668.57,0.00027123,2]
[335146895,1723890711881,-500.0,0.00027123,2]
[335146896,1723890711891,-842.04,0.00027123,2]
[335146897,1723890711901,-794.65,0.00027123,2]
[335146898,1723890711910,-500.0,0.00027123,2]
[335146899,1723890711919,-533.77,0.00027123,2]
[335146900,1723890711929,-545.57,0.00027123,2]
[335146901,1723890711938,-588.4,0.00027123,2]
[335146902,1723890711947,-618.32,0.00027123,2]
[335146903,1723890711957,-505.13796059,0.00027123,2]
[335146904,1723890711966,-500.28,0.00027123,2]
[335146905,1723890711975,-885.0,0.00027123,2]
[335146906,1723890711984,-864.62,0.00027123,2]
[335146907,1723890711993,-514.86,0.00027123,2]
[335146908,1723890712002,-553.37,0.00027123,2]
[335146909,1723890712011,-693.53,0.00027123,2]
[335146910,1723890712020,-619.18,0.00027123,2]
[335146911,1723890712030,-1400.99,0.00027123,2]
[335146912,1723890712039,-1038.37,0.00027123,2]
[335146913,1723890712049,-1018.27,0.00027123,2]
[335146914,1723890712062,-500.0,0.00027123,2]
[335146915,1723890712072,-517.68,0.00027123,2]
[335146916,1723890712081,-530.93,0.00027123,2]
[335146917,1723890712090,-655.89,0.00027123,2]
[335146918,1723890712102,-591.89,0.00027123,2]
[335146919,1723890712111,-500.0,0.00027123,2]
[335146920,1723890712121,-1232.8,0.00027123,2]
[335146921,1723890712131,-500.0,0.00027123,2]
[335146922,1723890712141,-543.94,0.00027123,2]
[335146923,1723890712150,-571.25,0.00027123,2]
[335146924,1723890712159,-503.76,0.00027123,2]
[335146925,1723890712168,-725.37,0.00027123,2]
[335146926,1723890712177,-500.0,0.00027123,2]
[335146927,1723890712186,-582.58,0.00027123,2]
[335146928,1723890712195,-739.32,0.00027123,2]
[335146929,1723890712204,-1438.68,0.00027123,2]
[335146930,1723890712219,-769.77,0.00027123,2]
[335146931,1723890712229,-2248.55,0.00027123,2]
[335146932,1723890712238,-657.64,0.00027123,2]
[335146933,1723890712248,-590.2,0.00027123,2]
[335146934,1723890712257,-788.03,0.00027123,2]
[335146935,1723890712270,-2904.2,0.00027123,2]
[335146936,1723890712279,-500.0,0.00027123,2]
[335146937,1723890712288,-500.0,0.00027123,2]
[335146938,1723890712298,-737.6,0.00027123,2]
[335146939,1723890712307,-1067.82,0.00027123,2]
[335146940,1723890712317,-22187.11,0.00027123,2]
[335146941,1723890712326,-6948.85,0.00027123,2]
[335146942,1723890712336,-668.08,0.00027123,2]
[335146943,1723890712345,-1369.92,0.00027123,2]
[335146944,1723890712356,-1067.8,0.00027123,2]
[335146945,1723890712366,-2952.04,0.00027123,2]
[335146946,1723890712378,-1761.64,0.00027123,2]
[335146947,1723890712389,-1088.19,0.00027123,2]
[335146948,1723890712401,-616.8,0.00027123,2]
[335146949,1723890712414,-1664.5,0.00027123,2]
[335146950,1723890712425,-433.37737187,0.00027123,2]
[335146951,1723890712435,-869.36,0.00027123,2]
[335146952,1723890712445,-1108.77,0.00027123,2]
[335146953,1723890712458,-905.39,0.00027123,2]
[335146954,1723890712469,-500.0,0.00027123,2]
[335146955,1723890712482,-2520.02,0.00027123,2]
[335146956,1723890712493,-569.78,0.00027123,2]
[335146957,1723890712503,-3853.14,0.00027123,2]
[335146958,1723890712514,-2333.05,0.00027123,2]
[335146959,1723890712524,-679.93,0.00027123,2]
[335146960,1723890712533,-521.59,0.00027123,2]
[335146961,1723890712543,-2770.69,0.00027123,2]
[335146962,1723890712552,-692.79,0.00027123,2]
[335146963,1723890712562,-500.28,0.00027123,2]
[335146964,1723890712572,-509.30121321,0.00027123,2]
[335146965,1723890712581,-1389.6,0.00027123,2]
[335146966,1723890712591,-4570.81,0.00027123,2]
[335146967,1723890712601,-17336.48764291,0.000273,2]
[335146968,1723890712611,-595.787751,0.000273,2]
[335146969,1723890712621,-500.0,0.00027386,2]
[335146970,1723890712630,-500.0,0.00027386,2]
[335146971,1723890712639,-500.0,0.00027386,2]
[335146972,1723890712649,-500.0,0.00027386,2]
[335146973,1723890712658,-500.0,0.0002739,2]
[335146974,1723890712668,-500.0,0.0002739,2]
[335146975,1723890712679,-500.0,0.0002739,2]
[335146976,1723890712690,-500.0,0.0002739,2]
[335146977,1723890712699,-500.0,0.0002739,2]
[335146978,1723890712713,-500.0,0.0002739,2]
[335146979,1723890712722,-500.0,0.0002739,2]
[335146980,1723890712732,-500.0,0.0002739,2]
[335146981,1723890712742,-500.0,0.0002739,2]
[335146982,1723890712752,-500.0,0.0002739,2]
[335146983,1723890712761,-500.0,0.0002739,2]
[335146984,1723890712772,-161.61089801,0.0002739,2]
[335146985,1723890712782,-500.0,0.0002739,2]
[335146986,1723890712792,-500.0,0.0002739,2]
[335146987,1723890712803,-500.0,0.0002739,2]
[335146988,1723890712812,-500.0,0.0002739,2]
[335146989,1723890712822,-500.0,0.0002739,2]
[335146990,1723890712833,-500.0,0.0002739,2]
[335146991,1723890712843,-500.0,0.0002739,2]
[335146992,1723890712854,-500.0,0.0002739,2]
[335146993,1723890712864,-500.0,0.0002739,2]
[335146994,1723890712874,-500.0,0.0002739,2]
[335146995,1723890712884,-500.0,0.0002739,2]
[335146996,1723890712894,-500.0,0.0002739,2]
[335146997,1723890712904,-500.0,0.0002739,2]
[335146998,1723890712913,-500.0,0.0002739,2]
[335146999,1723890712923,-500.0,0.0002739,2]
[335147000,1723890712934,-500.0,0.0002739,2]
[335147001,1723890712944,-500.0,0.0002739,2]
[335147002,1723890712954,-500.0,0.0002739,2]
[335147003,1723890712966,-227.52422754,0.0002739,2]
[335147004,1723890712976,-501.54,0.0002739,2]
[335147005,1723890712987,-500.0,0.0002739,2]
[335147006,1723890712996,-500.0,0.0002739,2]
[335147007,1723890713006,-500.0,0.0002739,2]
[335147008,1723890713016,-500.0,0.0002739,2]
[335147009,1723890713026,-500.0,0.0002739,2]
[335147010,1723890713036,-500.0,0.0002739,2]
[335147011,1723890713047,-500.0,0.0002739,2]
[335147012,1723890713059,-500.0,0.0002739,2]
[335147013,1723890713068,-1683.39,0.0002739,2]
[335147014,1723890713079,-500.0,0.0002739,2]
[335147015,1723890713089,-500.0,0.0002739,2]
[335147016,1723890713099,-500.0,0.0002739,2]
[335147017,1723890713109,-500.0,0.0002739,2]
[335147018,1723890713119,-500.0,0.0002739,2]
[335147019,1723890713129,-500.0,0.0002739,2]
[335147020,1723890713139,-500.0,0.0002739,2]
[335147021,1723890713150,-500.0,0.0002739,2]
[335147022,1723890713159,-500.0,0.0002739,2]
[335147023,1723890713169,-500.0,0.0002739,2]
[335147024,1723890713180,-500.0,0.0002739,2]
[335147025,1723890713190,-500.0,0.0002739,2]
[335147026,1723890713199,-500.0,0.0002739,2]
[335147027,1723890713211,-500.0,0.0002739,2]
[335147028,1723890713221,-500.0,0.0002739,2]
[335147029,1723890713231,-500.0,0.0002739,2]
[335147030,1723890713242,-500.0,0.0002739,2]
[335147031,1723890713252,-500.0,0.0002739,2]
[335147032,1723890713262,-500.0,0.0002739,2]
[335147033,1723890713274,-500.0,0.0002739,2]
[335147034,1723890713286,-500.0,0.0002739,2]
[335147035,1723890713298,-500.0,0.0002739,2]
[335147036,1723890713309,-500.0,0.0002739,2]
[335147037,1723890713320,-500.0,0.0002739,2]
[335147038,1723890713330,-500.0,0.0002739,2]
[335147039,1723890713342,-530.3206889,0.0002739,2]
[335147040,1723890713353,-500.0,0.0002739,2]
[335147041,1723890713364,-483.35112454,0.0002739,2]
[335147042,1723890713375,-500.0,0.0002739,2]
[335147043,1723890713388,-500.0,0.0002739,2]
[335147044,1723890713399,-335.99685874,0.0002739,2]
[335147045,1723890713411,-500.0,0.0002739,2]
[335147046,1723890713421,-259.45228411,0.0002739,2]
[335147047,1723890713431,-500.0,0.0002739,2]
[335147048,1723890713441,-500.0,0.0002739,2]
[335147049,1723890713451,-500.0,0.0002739,2]
[335147050,1723890713462,-500.0,0.0002739,2]
[335147051,1723890713472,-500.0,0.0002739,2]
[335147052,1723890713482,-500.0,0.0002739,2]
[335147053,1723890713495,-500.0,0.0002739,2]
[335147054,1723890713507,-500.0,0.0002739,2]
[335147055,1723890713519,-500.0,0.0002739,2]
[335147056,1723890713531,-500.0,0.0002739,2]
[335147057,1723890713541,-500.0,0.0002739,2]
[335147058,1723890713552,-500.0,0.0002739,2]
[335147059,1723890713563,-500.0,0.0002739,2]
[335147060,1723890713576,-500.0,0.0002739,2]
[335147061,1723890713588,-500.0,0.0002739,2]
[335147062,1723890713599,-500.0,0.0002739,2]
[335147063,1723890713609,-547.89,0.0002739,2]
[335147064,1723890713620,-500.0,0.0002739,2]
[335147065,1723890713632,-500.0,0.0002739,2]
[335147066,1723890713643,-500.0,0.0002739,2]
[335147067,1723890713654,-500.0,0.0002739,2]
[335147068,1723890713666,-500.0,0.0002739,2]
[335147069,1723890713678,-508.28983327,0.0002739,2]
[335147070,1723890713688,-500.0,0.0002739,2]
[335147071,1723890713699,-500.0,0.0002739,2]
[335147072,1723890713711,-500.0,0.0002739,2]
[335147073,1723890713720,-500.0,0.0002739,2]
[335147074,1723890713730,-500.0,0.0002739,2]
[335147075,1723890713740,-1406.266005,0.0002739,7]
[335147076,1723890713751,-500.0,0.0002739,2]
[335147077,1723890713761,-500.0,0.0002739,2]
[335147078,1723890713772,-500.0,0.0002739,2]
[335147079,1723890713782,-1406.266005,0.0002739,7]
[335147080,1723890713792,-500.0,0.0002739,2]
[335147081,1723890713802,-765.7,0.0002739,2]
[335147082,1723890713812,-500.0,0.0002739,2]
[335147083,1723890713823,-500.0,0.0002739,2]
[335147084,1723890713832,-500.0,0.0002739,2]
[335147085,1723890713842,-500.0,0.0002739,2]
[335147086,1723890713853,-500.0,0.0002739,2]
[335147087,1723890713863,-500.0,0.0002739,2]
[335147088,1723890713872,-500.0,0.0002739,2]
[335147089,1723890713883,-350.0,0.0002739,2]
[335147090,1723890713893,-500.0,0.0002739,2]
[335147091,1723890713903,-500.0,0.0002739,2]
[335147092,1723890713914,-633.9,0.0002739,2]
[335147093,1723890713925,-500.0,0.0002739,2]
[335147094,1723890713935,-500.0,0.0002739,2]
[335147095,1723890713945,-500.0,0.0002739,2]
[335147096,1723890713956,-500.0,0.0002739,2]
[335147097,1723890713966,-500.0,0.0002739,2]